[Event "*** Titled Tuesday Blitz"]
[Site "Chess.com"]
[Date "2020.05.26"]
[Round "10"]
[White "Quattroporte300"]
[Black "Grandmaster2B"]
[Result "0-1"]
[WhiteElo "2305"]
[BlackElo "2431"]
[TimeControl "180+1"]
[EndTime "12:03:25 PDT"]
[Termination "Grandmaster2B won by resignation"]

1. e4 {[%clk 0:03:00.9]} 1... c5 {[%clk 0:02:59.2]} 2. Nf3 {[%clk 0:03:00.2]}
2... d6 {[%clk 0:02:59.8]} 3. d4 {[%clk 0:03:00.4]} 3... cxd4 {[%clk 0:03:00.7]}
4. Nxd4 {[%clk 0:03:00.9]} 4... Nf6 {[%clk 0:03:01.5]} 5. Nc3 {[%clk 0:03:01.5]}
5... a6 {[%clk 0:03:02]} 6. h3 {[%clk 0:03:01.6]} 6... e5 {[%clk 0:03:01.4]} 7.
Nde2 {[%clk 0:03:01.1]} 7... Be6 {[%clk 0:03:01.7]} 8. g4 {[%clk 0:02:45.2]}
8... d5 {[%clk 0:03:02]} 9. exd5 {[%clk 0:02:44.3]} 9... Nxd5 {[%clk 0:03:02.9]}
10. Bg2 {[%clk 0:02:43.7]} 10... Nxc3 {[%clk 0:03:02.6]} 11. Qxd8+ {[%clk
0:02:42.9]} 11... Kxd8 {[%clk 0:03:03.5]} 12. Nxc3 {[%clk 0:02:43.4]} 12... Kc7
{[%clk 0:03:01.8]} 13. f4 {[%clk 0:02:34.5]} 13... f6 {[%clk 0:02:55.7]} 14. Bd2
{[%clk 0:02:16.9]} 14... Nc6 {[%clk 0:02:52.5]} 15. O-O-O {[%clk 0:02:16.9]}
15... Bc5 {[%clk 0:02:48.3]} 16. Rhe1 {[%clk 0:02:13]} 16... Bd4 {[%clk
0:02:38]} 17. Nd5+ {[%clk 0:02:08.2]} 17... Bxd5 {[%clk 0:02:37.5]} 18. Bxd5
{[%clk 0:02:07.6]} 18... Rad8 {[%clk 0:02:34.1]} 19. Bxc6 {[%clk 0:01:56.3]}
19... Kxc6 {[%clk 0:02:35]} 20. c3 {[%clk 0:01:55.6]} 20... Bf2 {[%clk
0:02:35.4]} 21. Re2 {[%clk 0:01:53.5]} 21... Bg3 {[%clk 0:02:35.6]} 22. fxe5
{[%clk 0:01:13.3]} 22... Bxe5 {[%clk 0:02:30]} 23. Be1 {[%clk 0:01:09.5]} 23...
Bf4+ {[%clk 0:02:18]} 24. Kc2 {[%clk 0:01:09.7]} 24... Rxd1 {[%clk 0:02:18.3]}
25. Kxd1 {[%clk 0:01:09.8]} 25... Rd8+ {[%clk 0:02:18.4]} 26. Kc2 {[%clk
0:01:10.1]} 26... Be5 {[%clk 0:02:14.3]} 27. g5 {[%clk 0:01:04.6]} 27... Rd5
{[%clk 0:01:59.8]} 28. gxf6 {[%clk 0:00:56.9]} 28... Bxf6 {[%clk 0:02:00.7]} 29.
c4 {[%clk 0:00:47.4]} 29... Rh5 {[%clk 0:01:56.4]} 30. Re3 {[%clk 0:00:41.2]}
30... Rc5 {[%clk 0:01:46]} 31. b3 {[%clk 0:00:38.2]} 31... h5 {[%clk 0:01:39.9]}
32. Bg3 {[%clk 0:00:37.4]} 32... Rf5 {[%clk 0:01:35.3]} 33. b4 {[%clk
0:00:30.7]} 33... h4 {[%clk 0:01:29.9]} 34. Be1 {[%clk 0:00:28.5]} 34... Rf4
{[%clk 0:01:24.1]} 35. Kb3 {[%clk 0:00:26.2]} 35... g5 {[%clk 0:01:18.8]} 36. a4
{[%clk 0:00:24.3]} 36... Rf5 {[%clk 0:01:05.4]} 37. Re6+ {[%clk 0:00:23.2]}
37... Kd7 {[%clk 0:01:03.5]} 38. Re3 {[%clk 0:00:23]} 38... Re5 {[%clk 0:00:58]}
39. Rd3+ {[%clk 0:00:20.5]} 39... Kc7 {[%clk 0:00:45]} 40. Bc3 {[%clk
0:00:18.4]} 40... Re6 {[%clk 0:00:45]} 41. Bd2 {[%clk 0:00:14.2]} 41... Rd6
{[%clk 0:00:42.1]} 42. Rxd6 {[%clk 0:00:08.2]} 42... Kxd6 {[%clk 0:00:43]} 43.
Kc2 {[%clk 0:00:07.9]} 43... Ke6 {[%clk 0:00:24.3]} 44. Kd3 {[%clk 0:00:08.3]}
44... g4 {[%clk 0:00:20.5]} 45. Bf4 {[%clk 0:00:03]} 45... gxh3 {[%clk
0:00:17.6]} 46. Ke4 {[%clk 0:00:03.1]} 46... Be7 {[%clk 0:00:13.9]} 47. c5
{[%clk 0:00:03.5]} 47... a5 {[%clk 0:00:13.2]} 48. bxa5 {[%clk 0:00:01.4]} 48...
Bxc5 {[%clk 0:00:13.2]} 49. Bh2 {[%clk 0:00:01.4]} 49... Bd6 {[%clk 0:00:13.3]}
50. Bg1 {[%clk 0:00:01.5]} 50... h2 {[%clk 0:00:13.1]} 0-1

[Event "*** Titled Tuesday Blitz"]
[Site "Chess.com"]
[Date "2020.05.26"]
[Round "10"]
[White "CMS13"]
[Black "MusicCityMaster"]
[Result "0-1"]
[WhiteElo "2211"]
[BlackElo "2371"]
[TimeControl "180+1"]
[EndTime "12:03:26 PDT"]
[Termination "MusicCityMaster won by resignation"]

1. e4 {[%clk 0:03:00.9]} 1... c5 {[%clk 0:02:59.4]} 2. Nc3 {[%clk 0:02:58.1]}
2... d6 {[%clk 0:02:55.9]} 3. f4 {[%clk 0:02:57.3]} 3... g6 {[%clk 0:02:55.1]}
4. Nf3 {[%clk 0:02:53.2]} 4... Bg7 {[%clk 0:02:55.2]} 5. Bb5+ {[%clk 0:02:50]}
5... Bd7 {[%clk 0:02:52.6]} 6. Bc4 {[%clk 0:02:49.8]} 6... Nc6 {[%clk
0:02:50.1]} 7. O-O {[%clk 0:02:49.6]} 7... e6 {[%clk 0:02:42.1]} 8. d3 {[%clk
0:02:48.2]} 8... Nge7 {[%clk 0:02:40.9]} 9. Qe1 {[%clk 0:02:48.3]} 9... Nd4
{[%clk 0:02:36.4]} 10. Nxd4 {[%clk 0:02:42.3]} 10... cxd4 {[%clk 0:02:36.3]} 11.
Ne2 {[%clk 0:02:41.2]} 11... O-O {[%clk 0:02:32.5]} 12. f5 {[%clk 0:02:40.6]}
12... exf5 {[%clk 0:02:24]} 13. Bg5 {[%clk 0:02:39.7]} 13... Be6 {[%clk
0:02:16.4]} 14. Qh4 {[%clk 0:02:36]} 14... Bxc4 {[%clk 0:02:13.9]} 15. Bxe7
{[%clk 0:02:24.4]} 15... Qb6 {[%clk 0:02:14]} 16. Bxf8 {[%clk 0:02:18.3]} 16...
Rxf8 {[%clk 0:02:12.5]} 17. exf5 {[%clk 0:02:06.7]} 17... Bd5 {[%clk 0:02:00.8]}
18. f6 {[%clk 0:02:03.7]} 18... Bh8 {[%clk 0:02:00.6]} 19. Ng3 {[%clk
0:01:31.8]} 19... Re8 {[%clk 0:01:36.1]} 20. Rae1 {[%clk 0:01:27.3]} 20... Qc6
{[%clk 0:01:35.3]} 21. Ne4 {[%clk 0:00:51.4]} 21... Qxc2 {[%clk 0:01:29.6]} 22.
Qg5 {[%clk 0:00:33.6]} 22... Bxe4 {[%clk 0:01:23.2]} 23. Rxe4 {[%clk 0:00:33.2]}
23... Rxe4 {[%clk 0:01:22.5]} 24. dxe4 {[%clk 0:00:34.1]} 24... Qxe4 {[%clk
0:01:21.8]} 25. Rc1 {[%clk 0:00:29.7]} 25... Qe6 {[%clk 0:01:14.1]} 26. Rf1
{[%clk 0:00:27.6]} 26... h6 {[%clk 0:01:07.1]} 27. Qf4 {[%clk 0:00:20]} 27... d3
{[%clk 0:01:06.4]} 28. Kh1 {[%clk 0:00:15]} 28... d2 {[%clk 0:00:59.9]} 29. Qxd2
{[%clk 0:00:14.3]} 29... Bxf6 {[%clk 0:01:00.1]} 30. Re1 {[%clk 0:00:13.6]}
30... Be5 {[%clk 0:00:52.2]} 31. Qxh6 {[%clk 0:00:12.5]} 31... Qxa2 {[%clk
0:00:52.3]} 32. Qd2 {[%clk 0:00:11.3]} 32... Qxb2 {[%clk 0:00:48.9]} 33. Qxb2
{[%clk 0:00:11.4]} 33... Bxb2 {[%clk 0:00:48.8]} 34. Rb1 {[%clk 0:00:11.9]}
34... Bd4 {[%clk 0:00:46.2]} 35. Rxb7 {[%clk 0:00:12.5]} 35... Bc5 {[%clk
0:00:46.1]} 36. g3 {[%clk 0:00:12]} 36... Kg7 {[%clk 0:00:46.7]} 37. Kg2 {[%clk
0:00:12.4]} 37... Kf6 {[%clk 0:00:47.2]} 38. Kf3 {[%clk 0:00:13]} 38... a5
{[%clk 0:00:46.6]} 39. Ke4 {[%clk 0:00:13.3]} 39... a4 {[%clk 0:00:46.9]} 40.
Kd3 {[%clk 0:00:12]} 40... a3 {[%clk 0:00:47.2]} 41. Kc2 {[%clk 0:00:12.1]}
41... Ke6 {[%clk 0:00:41.6]} 42. Kb3 {[%clk 0:00:12.2]} 42... f5 {[%clk
0:00:40.3]} 43. Rg7 {[%clk 0:00:11.7]} 43... Kf6 {[%clk 0:00:40.3]} 44. Rb7
{[%clk 0:00:11.7]} 44... g5 {[%clk 0:00:39.4]} 45. h4 {[%clk 0:00:11.4]} 45...
f4 {[%clk 0:00:36.6]} 46. hxg5+ {[%clk 0:00:08.4]} 46... Kxg5 {[%clk 0:00:37]}
47. Rg7+ {[%clk 0:00:06]} 47... Kf6 {[%clk 0:00:35.4]} 48. Rg4 {[%clk
0:00:06.1]} 48... fxg3 {[%clk 0:00:33.2]} 49. Rxg3 {[%clk 0:00:06.5]} 49... Ke5
{[%clk 0:00:33.9]} 50. Rg5+ {[%clk 0:00:06.4]} 50... Kf4 {[%clk 0:00:33]} 51.
Rxc5 {[%clk 0:00:05]} 51... dxc5 {[%clk 0:00:32.8]} 52. Kxa3 {[%clk 0:00:05.4]}
52... Ke3 {[%clk 0:00:32.2]} 53. Kb2 {[%clk 0:00:03.8]} 53... Kd2 {[%clk
0:00:31.3]} 54. Kb3 {[%clk 0:00:03.5]} 54... Kd3 {[%clk 0:00:31.7]} 55. Kb2
{[%clk 0:00:03.9]} 55... c4 {[%clk 0:00:32.1]} 56. Kc1 {[%clk 0:00:02.4]} 56...
Kc3 {[%clk 0:00:30.9]} 57. Kb1 {[%clk 0:00:02.8]} 57... Kd2 {[%clk 0:00:31]} 58.
Kb2 {[%clk 0:00:03]} 58... c3+ {[%clk 0:00:31.5]} 59. Kb1 {[%clk 0:00:02.6]}
59... c2+ {[%clk 0:00:31.9]} 60. Ka2 {[%clk 0:00:03.1]} 60... c1=Q {[%clk
0:00:32.4]} 0-1

[Event "*** Titled Tuesday Blitz"]
[Site "Chess.com"]
[Date "2020.05.26"]
[Round "10"]
[White "warmoatmeal"]
[Black "tylityli"]
[Result "1-0"]
[WhiteElo "2167"]
[BlackElo "2286"]
[TimeControl "180+1"]
[EndTime "12:03:26 PDT"]
[Termination "warmoatmeal won on time"]

1. d4 {[%clk 0:03:00.9]} 1... Nf6 {[%clk 0:02:58.1]} 2. Nf3 {[%clk 0:03:01.8]}
2... d5 {[%clk 0:02:57.2]} 3. Bf4 {[%clk 0:03:00.7]} 3... c5 {[%clk 0:02:56.6]}
4. e3 {[%clk 0:03:01.2]} 4... Nc6 {[%clk 0:02:55.9]} 5. c3 {[%clk 0:02:59.7]}
5... Qb6 {[%clk 0:02:55]} 6. Qc2 {[%clk 0:02:58.9]} 6... Bf5 {[%clk 0:02:51]} 7.
dxc5 {[%clk 0:02:57.9]} 7... Bxc2 {[%clk 0:02:46.8]} 8. cxb6 {[%clk 0:02:57.6]}
8... axb6 {[%clk 0:02:45.2]} 9. Na3 {[%clk 0:02:56.9]} 9... Bf5 {[%clk 0:02:39]}
10. Nb5 {[%clk 0:02:54.8]} 10... Kd7 {[%clk 0:02:35.7]} 11. Be2 {[%clk
0:02:52.8]} 11... Nh5 {[%clk 0:02:30.3]} 12. Bg3 {[%clk 0:02:42.4]} 12... Nxg3
{[%clk 0:02:25.9]} 13. hxg3 {[%clk 0:02:43.3]} 13... e6 {[%clk 0:02:21.7]} 14.
O-O {[%clk 0:02:42.6]} 14... h6 {[%clk 0:02:15.5]} 15. Rfd1 {[%clk 0:02:41.5]}
15... Ke7 {[%clk 0:01:48.5]} 16. c4 {[%clk 0:02:40.8]} 16... dxc4 {[%clk
0:01:47.7]} 17. Bxc4 {[%clk 0:02:39.1]} 17... Na5 {[%clk 0:01:43.5]} 18. Be2
{[%clk 0:02:37.2]} 18... Kf6 {[%clk 0:01:40.7]} 19. a3 {[%clk 0:02:29.6]} 19...
g5 {[%clk 0:01:38]} 20. Rac1 {[%clk 0:02:23.3]} 20... Bg7 {[%clk 0:01:32.8]} 21.
Rc7 {[%clk 0:02:22.2]} 21... Rac8 {[%clk 0:01:30.3]} 22. Rdd7 {[%clk 0:02:19]}
22... Rxc7 {[%clk 0:01:29.7]} 23. Rxc7 {[%clk 0:02:19.9]} 23... Kg6 {[%clk
0:01:26.8]} 24. b4 {[%clk 0:02:15.9]} 24... Nc6 {[%clk 0:01:24.2]} 25. Rxb7
{[%clk 0:02:15.8]} 25... Rb8 {[%clk 0:01:23.9]} 26. Rxb8 {[%clk 0:02:11.9]}
26... Nxb8 {[%clk 0:01:23.2]} 27. Nfd4 {[%clk 0:02:12.1]} 27... Be4 {[%clk
0:01:18.6]} 28. Bf3 {[%clk 0:02:08.2]} 28... Bxf3 {[%clk 0:01:14.6]} 29. gxf3
{[%clk 0:02:09.1]} 29... e5 {[%clk 0:01:09.9]} 30. Nb3 {[%clk 0:02:08.6]} 30...
f5 {[%clk 0:01:08.9]} 31. a4 {[%clk 0:02:06.8]} 31... Bf8 {[%clk 0:01:06.1]} 32.
a5 {[%clk 0:02:06.8]} 32... Bxb4 {[%clk 0:00:59]} 33. axb6 {[%clk 0:02:05.5]}
33... Kf6 {[%clk 0:00:57.9]} 34. Kf1 {[%clk 0:02:05.2]} 34... Ke6 {[%clk
0:00:57.8]} 35. Nc7+ {[%clk 0:01:44.2]} 35... Kd6 {[%clk 0:00:54.7]} 36. Ne8+
{[%clk 0:01:39.8]} 36... Ke7 {[%clk 0:00:47.5]} 37. Ng7 {[%clk 0:01:32.2]} 37...
Kf6 {[%clk 0:00:45.4]} 38. Nh5+ {[%clk 0:01:31.1]} 38... Ke7 {[%clk 0:00:39.7]}
39. Ke2 {[%clk 0:01:27.3]} 39... Kd7 {[%clk 0:00:37.3]} 40. Ng7 {[%clk
0:01:26.4]} 40... f4 {[%clk 0:00:36.9]} 41. g4 {[%clk 0:01:18.3]} 41... Kc6
{[%clk 0:00:30.7]} 42. Nf5 {[%clk 0:01:13.3]} 42... Bf8 {[%clk 0:00:30.1]} 43.
Na5+ {[%clk 0:01:09.4]} 43... Kb5 {[%clk 0:00:26.3]} 44. Nb7 {[%clk 0:01:08.5]}
44... Kxb6 {[%clk 0:00:25.2]} 45. Nd8 {[%clk 0:01:07.4]} 45... Nd7 {[%clk
0:00:19.9]} 46. Nf7 {[%clk 0:01:05]} 46... Kc6 {[%clk 0:00:19]} 47. N7xh6 {[%clk
0:01:04.4]} 47... Kd5 {[%clk 0:00:18]} 48. Nf7 {[%clk 0:01:04]} 48... Ke6 {[%clk
0:00:17.3]} 49. Nxg5+ {[%clk 0:01:03.8]} 49... Kf6 {[%clk 0:00:15.6]} 50. Ne4+
{[%clk 0:01:04.2]} 50... Ke6 {[%clk 0:00:15.5]} 51. Kd3 {[%clk 0:01:01.6]} 51...
Nb6 {[%clk 0:00:11]} 52. Nc3 {[%clk 0:00:49]} 52... Nd7 {[%clk 0:00:09.7]} 53.
exf4 {[%clk 0:00:46.5]} 53... Nc5+ {[%clk 0:00:07.2]} 54. Ke3 {[%clk 0:00:45.4]}
54... exf4+ {[%clk 0:00:06]} 55. Kxf4 {[%clk 0:00:46.3]} 55... Nd3+ {[%clk
0:00:04.1]} 56. Kg3 {[%clk 0:00:45.1]} 56... Ne5 {[%clk 0:00:04.3]} 57. Ne4
{[%clk 0:00:44.8]} 57... Bb4 {[%clk 0:00:03.3]} 58. Ne3 {[%clk 0:00:44.7]} 58...
Be7 {[%clk 0:00:02]} 59. f4 {[%clk 0:00:43.6]} 59... Nd3 {[%clk 0:00:02.1]} 60.
g5 {[%clk 0:00:39.7]} 60... Bd8 {[%clk 0:00:01.4]} 61. f3 {[%clk 0:00:39.5]} 1-0

[Event "*** Titled Tuesday Blitz"]
[Site "Chess.com"]
[Date "2020.05.26"]
[Round "10"]
[White "Rozum_Ivan"]
[Black "TenisMaster"]
[Result "1-0"]
[WhiteElo "2667"]
[BlackElo "2815"]
[TimeControl "180+1"]
[EndTime "12:03:28 PDT"]
[Termination "Rozum_Ivan won on time"]

1. d4 {[%clk 0:03:00.9]} 1... Nf6 {[%clk 0:02:59.2]} 2. Nf3 {[%clk 0:02:59.4]}
2... d5 {[%clk 0:02:57]} 3. c4 {[%clk 0:02:59.4]} 3... e6 {[%clk 0:02:56.8]} 4.
g3 {[%clk 0:02:57.3]} 4... Bb4+ {[%clk 0:02:55.8]} 5. Bd2 {[%clk 0:02:57.1]}
5... Be7 {[%clk 0:02:56.2]} 6. Bg2 {[%clk 0:02:57.2]} 6... O-O {[%clk
0:02:56.3]} 7. O-O {[%clk 0:02:57.3]} 7... Nbd7 {[%clk 0:02:56.9]} 8. Qc2 {[%clk
0:02:57.4]} 8... Ne4 {[%clk 0:02:57.3]} 9. Bf4 {[%clk 0:02:56.7]} 9... c6 {[%clk
0:02:57.2]} 10. Nc3 {[%clk 0:02:55]} 10... g5 {[%clk 0:02:57.1]} 11. Bc1 {[%clk
0:02:54.3]} 11... f5 {[%clk 0:02:56.4]} 12. Rb1 {[%clk 0:02:52.1]} 12... Bf6
{[%clk 0:02:51.4]} 13. Rd1 {[%clk 0:02:44.3]} 13... Qe7 {[%clk 0:02:42.4]} 14.
b4 {[%clk 0:02:43.2]} 14... Qg7 {[%clk 0:02:41.8]} 15. e3 {[%clk 0:02:26.4]}
15... Nb6 {[%clk 0:02:21.7]} 16. c5 {[%clk 0:02:22.7]} 16... Nc4 {[%clk
0:02:11.6]} 17. Nxe4 {[%clk 0:02:16.3]} 17... fxe4 {[%clk 0:02:10.6]} 18. Ne1
{[%clk 0:02:13.2]} 18... b5 {[%clk 0:02:08.6]} 19. cxb6 {[%clk 0:02:12.7]} 19...
axb6 {[%clk 0:02:08.3]} 20. Bxe4 {[%clk 0:02:10.6]} 20... dxe4 {[%clk
0:01:56.6]} 21. Qxc4 {[%clk 0:02:10.3]} 21... Bd7 {[%clk 0:01:56.4]} 22. Bb2
{[%clk 0:01:57.9]} 22... Rf7 {[%clk 0:01:47.1]} 23. Qb3 {[%clk 0:01:40.8]} 23...
b5 {[%clk 0:01:44.5]} 24. Rd2 {[%clk 0:01:39.3]} 24... h5 {[%clk 0:01:41.9]} 25.
a3 {[%clk 0:01:25]} 25... Qg6 {[%clk 0:01:35.1]} 26. Qc2 {[%clk 0:01:24.4]}
26... h4 {[%clk 0:01:28.2]} 27. f3 {[%clk 0:01:21.5]} 27... hxg3 {[%clk
0:01:15.8]} 28. hxg3 {[%clk 0:01:21.8]} 28... e5 {[%clk 0:01:14.4]} 29. dxe5
{[%clk 0:01:19.1]} 29... Bg7 {[%clk 0:01:14.6]} 30. Rbd1 {[%clk 0:01:09.3]}
30... Bf5 {[%clk 0:01:02.9]} 31. g4 {[%clk 0:01:08.7]} 31... Be6 {[%clk
0:00:56.7]} 32. Rd6 {[%clk 0:01:04.5]} 32... Raf8 {[%clk 0:00:52.5]} 33. R1d2
{[%clk 0:00:35.9]} 33... Qh6 {[%clk 0:00:19.6]} 34. Rh2 {[%clk 0:00:33.9]} 34...
Qg6 {[%clk 0:00:19.8]} 35. Rf2 {[%clk 0:00:23.7]} 35... Re7 {[%clk 0:00:14.7]}
36. Ng2 {[%clk 0:00:18.3]} 36... Ref7 {[%clk 0:00:05.6]} 37. f4 {[%clk
0:00:14.7]} 37... gxf4 {[%clk 0:00:05.4]} 38. Nxf4 {[%clk 0:00:15]} 38... Rxf4
{[%clk 0:00:03.9]} 39. exf4 {[%clk 0:00:11.5]} 39... Qxg4+ {[%clk 0:00:03.7]}
40. Rg2 {[%clk 0:00:12]} 40... Qxf4 {[%clk 0:00:03.9]} 41. Rxe6 {[%clk
0:00:11.6]} 41... Qf1+ {[%clk 0:00:03.9]} 42. Kh2 {[%clk 0:00:12.2]} 42... Qf4+
{[%clk 0:00:03.7]} 43. Rg3 {[%clk 0:00:12.8]} 43... Qh4+ {[%clk 0:00:03.4]} 44.
Kg2 {[%clk 0:00:13]} 44... Qf4 {[%clk 0:00:02.3]} 45. Qe2 {[%clk 0:00:12]} 45...
e3 {[%clk 0:00:01.8]} 46. Reg6 {[%clk 0:00:11.7]} 46... Qe4+ {[%clk 0:00:01.7]}
47. Kh3 {[%clk 0:00:10.7]} 47... Qh1+ {[%clk 0:00:01.3]} 48. Kg4 {[%clk
0:00:10.5]} 48... Qe4+ {[%clk 0:00:01.8]} 49. Kh3 {[%clk 0:00:10]} 49... Qh1+
{[%clk 0:00:01.6]} 50. Qh2 {[%clk 0:00:10.6]} 1-0

[Event "*** Titled Tuesday Blitz"]
[Site "Chess.com"]
[Date "2020.05.26"]
[Round "10"]
[White "Danfii"]
[Black "lupta_robin"]
[Result "1-0"]
[WhiteElo "2428"]
[BlackElo "2590"]
[TimeControl "180+1"]
[EndTime "12:03:29 PDT"]
[Termination "Danfii won by resignation"]

1. e4 {[%clk 0:03:00.9]} 1... c5 {[%clk 0:02:59.4]} 2. Nf3 {[%clk 0:03:00.8]}
2... Nc6 {[%clk 0:02:59.9]} 3. d4 {[%clk 0:03:00.9]} 3... cxd4 {[%clk
0:03:00.8]} 4. Nxd4 {[%clk 0:03:00.8]} 4... Nf6 {[%clk 0:03:00.5]} 5. Nc3 {[%clk
0:03:00.7]} 5... e5 {[%clk 0:03:01]} 6. Ndb5 {[%clk 0:03:00.8]} 6... d6 {[%clk
0:03:01.4]} 7. Bg5 {[%clk 0:03:00.9]} 7... a6 {[%clk 0:03:01.8]} 8. Na3 {[%clk
0:03:01.3]} 8... b5 {[%clk 0:03:02.4]} 9. Nd5 {[%clk 0:03:01.4]} 9... Be7 {[%clk
0:03:03]} 10. Bxf6 {[%clk 0:03:01.9]} 10... Bxf6 {[%clk 0:03:03.9]} 11. c4
{[%clk 0:03:02.3]} 11... b4 {[%clk 0:03:03.8]} 12. Nc2 {[%clk 0:03:02.9]} 12...
O-O {[%clk 0:03:03.5]} 13. h4 {[%clk 0:03:02.1]} 13... a5 {[%clk 0:03:01.5]} 14.
g3 {[%clk 0:03:00.2]} 14... a4 {[%clk 0:03:01.8]} 15. b3 {[%clk 0:02:57.9]}
15... Be6 {[%clk 0:02:49.4]} 16. Bg2 {[%clk 0:02:39.2]} 16... Bxd5 {[%clk
0:02:17.8]} 17. cxd5 {[%clk 0:02:30.5]} 17... Na7 {[%clk 0:02:04.6]} 18. O-O
{[%clk 0:02:27.2]} 18... Qa5 {[%clk 0:01:58.8]} 19. Qd2 {[%clk 0:02:22.9]} 19...
Rfb8 {[%clk 0:01:56.3]} 20. Rfb1 {[%clk 0:02:00.4]} 20... a3 {[%clk 0:01:52.2]}
21. Bf1 {[%clk 0:01:54.3]} 21... Bd8 {[%clk 0:01:40.9]} 22. Ne3 {[%clk
0:01:52.1]} 22... Nb5 {[%clk 0:01:19.9]} 23. Bxb5 {[%clk 0:01:46.1]} 23... Rxb5
{[%clk 0:01:15.8]} 24. Rc1 {[%clk 0:01:45.8]} 24... Bb6 {[%clk 0:00:53.3]} 25.
Nc4 {[%clk 0:01:44.9]} 25... Qa6 {[%clk 0:00:48.5]} 26. Kg2 {[%clk 0:01:38]}
26... Bd4 {[%clk 0:00:46.1]} 27. Rab1 {[%clk 0:01:36]} 27... h6 {[%clk
0:00:46.3]} 28. Qd3 {[%clk 0:01:26.5]} 28... Rc5 {[%clk 0:00:43]} 29. Rc2 {[%clk
0:01:26.2]} 29... Rac8 {[%clk 0:00:42.5]} 30. Rd1 {[%clk 0:01:25.3]} 30... f6
{[%clk 0:00:40.5]} 31. Qf3 {[%clk 0:01:21.9]} 31... Rxc4 {[%clk 0:00:27.7]} 32.
bxc4 {[%clk 0:01:19.2]} 32... Rxc4 {[%clk 0:00:28.3]} 33. Qd3 {[%clk 0:01:15]}
33... Bc3 {[%clk 0:00:25.7]} 34. Rb1 {[%clk 0:00:59.5]} 34... Qc8 {[%clk
0:00:25.6]} 35. Rb3 {[%clk 0:00:57.4]} 35... Qc5 {[%clk 0:00:25.6]} 36. h5
{[%clk 0:00:44.7]} 36... Qc8 {[%clk 0:00:20.8]} 37. Qf3 {[%clk 0:00:41.6]} 37...
Rd4 {[%clk 0:00:19.4]} 38. Rcxc3 {[%clk 0:00:37.5]} 38... bxc3 {[%clk
0:00:19.2]} 39. Rxc3 {[%clk 0:00:38.4]} 39... Qd7 {[%clk 0:00:19.6]} 40. Rxa3
{[%clk 0:00:36.2]} 40... Kh7 {[%clk 0:00:20.1]} 41. Ra8 {[%clk 0:00:31.9]} 41...
f5 {[%clk 0:00:16.7]} 42. exf5 {[%clk 0:00:27.2]} 42... Qf7 {[%clk 0:00:16.2]}
43. Ra5 {[%clk 0:00:17.7]} 43... e4 {[%clk 0:00:15.2]} 44. Qf4 {[%clk
0:00:17.9]} 44... Qf6 {[%clk 0:00:13.4]} 45. a4 {[%clk 0:00:15.5]} 45... Rb4
{[%clk 0:00:12.1]} 46. Ra6 {[%clk 0:00:15.4]} 46... Rb2 {[%clk 0:00:06.6]} 47.
Rxd6 {[%clk 0:00:12.3]} 47... Qd4 {[%clk 0:00:06.2]} 48. f6 {[%clk 0:00:12.2]}
48... Qxf6 {[%clk 0:00:01.1]} 49. Rxf6 {[%clk 0:00:11.6]} 49... gxf6 {[%clk
0:00:02]} 50. Qxe4+ {[%clk 0:00:11.9]} 1-0